bitfinex-derivatives/quotes_SOLF0:USTF0_20250206
["timestamp","ask_amount","ask_price","bid_price","bid_amount"]
[1738868700283,3.8542,189.81,189.75,0.03936143]
[1738868700482,3.8542,189.81,189.75,5.30806143]
[1738868700688,4.38,189.89,189.75,0.03936143]
[1738868700886,5.2663,189.84,189.78,5.2679]
[1738868701281,3.9136,189.88,189.76,31.77122987]
[1738868701783,3.9136,189.88,189.79,0.03452355]
[1738868702382,5.2673,189.8,189.79,0.03452355]
[1738868703490,3.9136,189.88,189.79,0.03452355]
[1738868704079,5.2671,189.81,189.79,0.03452355]
[1738868704283,3.9136,189.88,189.79,0.03452355]
[1738868704990,4.36,189.97,189.82,31.77122987]
[1738868705186,5.2647,189.9,189.85,5.2657]
[1738868705388,5.2647,189.9,189.82,31.77122987]
[1738868705582,5.2647,189.9,189.86,0.04045329]
[1738868705787,5.2647,189.9,189.86,5.30605329]
[1738868705988,5.2647,189.9,189.86,5.2656]
[1738868706188,3.8289,189.94,189.82,31.77122987]
[1738868706389,3.8289,189.94,189.86,0.04020853]
[1738868706589,1.31649842,189.93,189.82,31.77122987]
[1738868706795,3.8289,189.94,189.88,0.03516914]
[1738868706988,1.31657988,189.93,189.8,5.2671]
[1738868707188,1.31657988,189.93,189.79,31.77122987]
[1738868707393,5.2658,189.86,189.81,5.2668]
[1738868707784,35.60012987,189.94,189.76,31.77122987]
[1738868707993,31.77122987,189.91,189.77,5.2679]
[1738868708194,0.03977994,189.87,189.83,0.03518338]
[1738868708389,0.03977994,189.87,189.73,31.77122987]
[1738868708692,4.36,189.88,189.73,31.77122987]
[1738868708886,3.8289,189.94,189.81,31.77122987]
[1738868709091,1.31684599,189.93,189.81,31.77122987]
[1738868709792,3.8289,189.94,189.87,31.77122987]
[1738868709793,0.03383257,189.89,189.87,31.77122987]
[1738868710190,0.03383257,189.89,189.88,5.2651]
[1738868710493,4.36,190.01,189.87,31.77122987]
[1738868710693,1.5811,190.0,189.9,31.77122987]
[1738868711790,0.0332428,189.97,189.93,0.03649944]
[1738868712590,47.54332987,190.17,189.96,31.77122987]
[1738868712789,5.2604,190.06,189.99,31.77122987]
[1738868713189,1.5811,190.08,189.99,31.77122987]
[1738868713393,5.2599,190.07,190.02,5.2612]
[1738868713695,1.5811,190.08,189.99,31.77122987]
[1738868713896,1.5811,190.08,189.96,5.2628]
[1738868714098,2.97659853,190.07,190.03,0.03570949]
[1738868714294,5.2609,190.04,189.99,5.2621]
[1738868714594,1.661,190.07,189.96,31.77122987]
[1738868714794,1.661,190.07,189.99,31.77122987]
[1738868714993,1.661,190.07,190.0,5.2616]
[1738868715190,1.661,190.07,189.99,31.77122987]
[1738868715499,5.29523292,190.05,190.02,0.03819655]
[1738868715692,0.03483292,190.05,190.02,0.03819655]
[1738868717897,5.2609,190.04,190.02,0.03819655]
[1738868718093,0.03483292,190.05,190.02,0.03819655]
[1738868718697,34.26376279,190.05,189.9,31.77122987]
[1738868718896,1.31554565,190.04,189.9,31.77122987]
[1738868719093,5.2634,189.95,189.9,5.2644]
[1738868719294,4.32,190.03,189.87,31.77122987]
[1738868719494,1.31590452,190.02,189.87,31.77122987]
[1738868719700,1.31590452,190.02,189.9,31.77122987]
[1738868719904,0.0349043,189.96,189.93,5.30233744]
[1738868720496,0.0349043,189.96,189.93,0.03863744]
[1738868723300,0.0349043,189.96,189.84,31.77122987]
[1738868723699,1.31603423,190.0,189.86,5.2655]
[1738868723901,31.77122987,189.98,189.81,31.77122987]
[1738868724203,2.94993423,189.97,189.81,31.77122987]
[1738868724502,0.03451131,189.91,189.88,0.03418332]
[1738868724702,5.2646,189.9,189.88,0.03418332]
[1738868724894,0.03451131,189.91,189.88,0.03418332]
[1738868725203,5.2662,189.85,189.8,5.2671]
[1738868725404,0.03451131,189.91,189.78,31.77122987]
[1738868725597,1.31664754,189.94,189.78,31.77122987]
[1738868725901,5.2657,189.86,189.78,31.77122987]
[1738868726202,38.36922987,189.95,189.78,31.77122987]
[1738868726203,31.77122987,189.92,189.78,31.77122987]
[1738868726403,0.03751575,189.84,189.8,0.03635681]
[1738868726803,6.598,189.95,189.72,224.77122987]
[1738868726804,5.2679,189.78,189.74,5.2689]
[1738868726997,0.03580986,189.84,189.72,31.77122987]
[1738868727301,5.2663,189.84,189.76,5.2684]
[1738868727500,0.03606928,189.8,189.74,0.03683029]
[1738868727696,0.03606928,189.8,189.72,31.77122987]
[1738868727903,0.03606928,189.8,189.75,0.03910252]
[1738868728504,0.03606928,189.8,189.66,31.77122987]
[1738868728804,34.13932987,189.83,189.66,31.77122987]
[1738868728999,1.31736791,189.82,189.66,31.77122987]
[1738868729194,31.77122987,189.8,189.63,31.77122987]
[1738868729398,2.96916791,189.79,189.63,31.77122987]
[1738868729703,0.0352857,189.73,189.7,0.0357211]
[1738868731506,5.3045857,189.73,189.7,0.0357211]
[1738868731705,0.0352857,189.73,189.7,0.0357211]
[1738868732205,0.0352857,189.73,189.72,31.77122987]
[1738868732399,6.6681,189.83,189.72,31.77122987]
[1738868732707,1.31730831,189.82,189.75,31.77122987]
[1738868732902,6.6681,189.83,189.75,31.77122987]
[1738868733099,2.3681,189.83,189.75,31.77122987]
[1738868733602,1.5532,189.88,189.78,31.77122987]
[1738868733804,0.03884578,189.81,189.77,0.04023164]
[1738868734111,9.3218,189.91,189.8,31.77122987]
[1738868734309,4.0574,189.91,189.84,31.77122987]
[1738868734610,5.8532,189.97,189.84,31.77122987]
[1738868734803,5.2638,189.93,189.87,5.2654]
[1738868735108,5.2638,189.93,189.84,31.77122987]
[1738868735406,0.03386675,189.92,189.88,0.03785216]
[1738868735607,0.03386675,189.92,189.9,5.2645]
[1738868736106,0.03386675,189.92,189.88,0.03785216]
[1738868736107,0.03386675,189.92,189.88,5.30275216]
[1738868736496,0.03386675,189.92,189.88,0.03785216]
[1738868737007,0.03386675,189.92,189.9,5.2646]
[1738868737203,0.03386675,189.92,189.88,0.03785216]
[1738868737601,0.03386675,189.92,189.88,5.30265216]
[1738868738105,5.2643,189.91,189.88,0.03785216]
[1738868738309,0.03386675,189.92,189.88,0.03785216]
[1738868739810,0.03386675,189.92,189.9,5.2645]
[1738868740011,0.03386675,189.92,189.88,0.03785216]
[1738868740411,0.03386675,189.92,189.9,31.77122987]
[1738868740613,0.03386675,189.92,189.91,5.2643]
[1738868741914,0.00906675,189.92,189.91,5.2643]
[1738868742211,4.28,190.08,189.9,63.54245974]
[1738868742414,5.2615,190.02,189.94,31.77122987]
[1738868742611,1.31570037,190.01,189.94,31.77122987]
[1738868742811,1.31570037,190.0,189.9,31.77122987]
[1738868743114,1.31577278,189.99,189.9,31.77122987]
[1738868743311,0.03319246,189.97,189.94,5.2632]
[1738868743520,5.2632,189.95,189.9,31.77122987]
[1738868743810,5.2632,189.95,189.94,0.03751703]
[1738868744015,6.57918674,189.95,189.94,0.03751703]
[1738868744415,5.2638,189.93,189.87,31.77122987]
[1738868744615,0.03334985,189.97,189.87,31.77122987]
[1738868744616,31.77122987,190.02,189.87,31.77122987]
[1738868744822,1.31614089,190.01,189.87,31.77122987]
[1738868745012,5.2637,189.94,189.87,31.77122987]
[1738868745213,1.31614089,189.93,189.89,5.2648]
[1738868745419,35.87982987,190.05,189.89,5.2648]
[1738868745420,5.2636,189.94,189.89,5.2648]
[1738868745614,1.3552923,189.93,189.89,5.29951815]
[1738868745816,1.31613789,189.92,189.89,5.29951815]
[1738868746619,0.03917525,189.93,189.9,5.2643]
[1738868747019,1.31614439,189.92,189.9,5.2643]
[1738868747319,0.03917525,189.93,189.91,5.2643]
[1738868747520,0.03917525,189.93,189.89,0.03471815]
[1738868748119,0.03917525,189.93,189.9,31.77122987]
[1738868749210,0.03917525,189.93,189.92,5.264]
[1738868750918,0.03917525,189.93,189.9,5.2643]
[1738868751113,0.03917525,189.93,189.89,0.03471815]
[1738868751519,5.30307525,189.93,189.89,5.29931815]
[1738868751821,1.31622654,189.92,189.89,0.03471815]
[1738868752019,1.31622654,189.91,189.89,0.03471815]
[1738868752221,0.03917525,189.93,189.81,31.77122987]
[1738868752222,1.31622654,189.9,189.83,5.2665]
[1738868752416,1.31622654,189.89,189.81,31.77122987]
[1738868752716,5.2651,189.89,189.85,5.2659]
[1738868752919,5.2651,189.89,189.81,31.77122987]
[1738868753323,0.03507142,189.87,189.85,5.2659]
[1738868753513,0.03507142,189.87,189.84,31.77122987]
[1738868754422,0.03507142,189.87,189.85,5.2659]
[1738868754723,0.03507142,189.87,189.83,0.037181]
[1738868755120,5.2662,189.84,189.83,0.037181]
[1738868756124,1.31692827,189.84,189.68,0.0715]
[1738868756326,1.5319,189.83,189.68,0.0715]
[1738868756526,1.31692827,189.82,189.69,31.77122987]
[1738868757121,5.269,189.75,189.69,37.04132987]
[1738868757423,0.03648193,189.77,189.74,0.03569564]
[1738868757624,0.03648193,189.77,189.69,37.04132987]
[1738868757926,0.03648193,189.77,189.74,0.03829569]
[1738868758227,0.03648193,189.77,189.68,5.2706]
[1738868758530,1.31748476,189.76,189.68,5.2706]
[1738868758722,5.2699,189.71,189.66,5.2712]
[1738868758922,34.11912987,189.81,189.66,31.77122987]
[1738868759118,1.31762624,189.8,189.66,31.77122987]
[1738868759324,1.31762624,189.8,189.7,5.2701]
[1738868759624,0.0359008,189.75,189.71,0.03617482]
[1738868759819,0.0359008,189.75,189.71,5.30587482]
[1738868760224,0.0359008,189.75,189.71,0.03617482]
[1738868760425,0.0359008,189.75,189.61,28.95206617]
[1738868760621,1.31765627,189.74,189.61,28.95206617]
[1738868760827,5.2706,189.69,189.65,5.2715]
[1738868761028,1.6258,189.73,189.63,31.77122987]
[1738868761225,6.5679,189.81,189.66,31.77122987]
[1738868761426,5.269,189.75,189.7,5.27]
[1738868761631,0.04038244,189.75,189.72,0.03424074]
[1738868761828,1.31759007,189.74,189.72,0.03424074]
[1738868762031,0.04038244,189.75,189.72,0.03424074]
[1738868763425,1.31758759,189.74,189.72,0.03424074]
[1738868763628,1.31758759,189.74,189.6,31.77122987]
[1738868763829,5.2704,189.7,189.62,5.2723]
[1738868764031,31.77122987,189.74,189.62,5.2723]
[1738868764230,1.31795327,189.73,189.62,5.2723]
[1738868764436,5.2711,189.67,189.62,5.2723]
[1738868764735,0.03877776,189.69,189.66,0.03584851]
[1738868765030,1.31804613,189.68,189.54,105.04819269]
[1738868765230,1.6745,189.67,189.54,31.77122987]
[1738868765542,5.2739,189.57,189.51,5.2752]
[1738868765833,31.77122987,189.65,189.48,31.77122987]
[1738868766035,1.31867687,189.64,189.51,5.2753]
[1738868766234,0.03689955,189.58,189.55,0.03826803]
[1738868766533,4.24,189.61,189.55,0.03826803]
[1738868766731,1.31888788,189.6,189.55,0.03826803]
[1738868767030,0.03537781,189.58,189.45,387.21415067]
[1738868767234,0.03537781,189.58,189.45,58.1229208]
[1738868767438,1.35426569,189.58,189.45,58.1229208]
[1738868767629,5.2762,189.48,189.45,58.1229208]
[1738868768132,5.2762,189.48,189.41,5.2781]
[1738868768331,0.03931536,189.49,189.46,0.03897655]
[1738868768730,5.2764,189.48,189.39,6.33462196]
[1738868768933,4.24,189.51,189.39,1.05602196]
[1738868769135,4.24,189.51,189.36,31.77122987]
[1738868769328,5.2774,189.44,189.38,5.279]
[1738868769628,5.2774,189.44,189.36,31.77122987]
[1738868769830,0.03938131,189.43,189.39,0.0374714]
[1738868770133,31.77122987,189.5,189.33,39.00541337]
[1738868770330,0.04020269,189.43,189.39,0.03576849]
[1738868770935,0.04020269,189.43,189.31,58.1229208]
[1738868771129,63.54245974,189.32,189.24,113.9800537]
[1738868771436,31.77122987,189.25,189.19,289.97805232]
[1738868771632,1.32171726,189.24,189.09,7.18658123]
[1738868771834,31.77122987,189.2,189.09,7.18658123]
[1738868772036,5.2834,189.23,189.12,5.286]
[1738868772227,0.03700275,189.16,189.13,0.03835471]
[1738868772426,37.09122987,189.28,189.13,0.03835471]
[1738868772731,31.77122987,189.28,189.13,4.24]
[1738868773129,5.36,189.33,189.14,2.5471]
[1738868773130,5.2839,189.21,189.14,2.5471]
[1738868773335,31.77122987,189.2,189.14,2.5471]
[1738868773537,31.77122987,189.2,189.09,4.24]
[1738868773832,0.03556547,189.19,189.16,0.03796718]
[1738868774231,5.2847,189.18,189.16,0.03796718]
[1738868774429,0.03556547,189.19,189.07,2.5471]
[1738868774635,149.11646714,189.19,189.07,2.5471]
[1738868774837,149.08090167,189.19,189.05,11.1701]
[1738868775131,5.2852,189.16,189.05,11.1701]
[1738868775330,5.2852,189.16,189.06,5.2878]
[1738868775541,5.2852,189.16,189.01,1.6428]
[1738868775542,5.2852,189.16,189.02,31.77122987]
[1738868775738,0.03949624,189.13,189.09,0.03428177]
[1738868776345,0.03949624,189.13,188.99,31.77122987]
[1738868776847,5.2866,189.11,189.01,5.2893]
[1738868777045,31.77122987,189.13,189.01,5.2893]
[1738868777549,0.03721213,189.09,189.05,0.0302917]
[1738868777843,0.03721213,189.09,188.94,31.77122987]
[1738868778139,136.41267944,189.12,188.88,104.5]
[1738868778140,136.41267944,189.12,189.03,5.2888]
[1738868778349,136.41267944,189.12,189.03,31.77122987]
[1738868778640,136.41267944,189.12,189.08,5.2872]
[1738868778849,136.41267944,189.12,189.03,31.77122987]
[1738868779049,136.4504942,189.12,189.03,31.77122987]
[1738868779348,35.79863606,189.12,189.07,5.2876]
[1738868780736,35.79863606,189.12,189.03,25.24991161]
[1738868781334,41.08493606,189.12,189.01,3.1472]
[1738868781547,41.08493606,189.12,189.01,5.7184]
[1738868781851,35.79863606,189.12,189.06,31.77122987]
[1738868782047,35.79863606,189.12,189.1,5.2867]
[1738868782647,35.79863606,189.12,189.11,5.2865]
[1738868782847,0.03781476,189.12,189.11,5.2865]
[1738868784552,48.42904353,189.19,189.09,31.77122987]
[1738868784753,48.42904353,189.19,189.12,31.77122987]
[1738868784945,48.42904353,189.19,189.09,31.77122987]
[1738868785145,48.42904353,189.19,189.06,31.77122987]
[1738868785652,5.286,189.13,189.08,5.2872]
[1738868785848,0.03817717,189.14,189.11,0.03714466]
[1738868786246,48.42904353,189.19,189.06,31.77122987]
[1738868786453,0.03349176,189.14,189.11,0.03685682]
[1738868787751,48.42904353,189.19,189.12,31.77122987]
[1738868788258,48.42904353,189.19,189.11,0.03685682]
[1738868788756,48.42904353,189.19,189.13,5.2858]
[1738868788958,0.03386737,189.17,189.11,0.03685682]
[1738868789147,0.03386737,189.17,189.16,5.2851]
[1738868790459,0.03386737,189.17,189.11,0.03685682]
[1738868790957,5.2863,189.12,189.11,0.03685682]
[1738868792553,31.77122987,189.14,188.94,31.77122987]
[1738868792762,31.77122987,189.1,188.95,1.59]
[1738868792956,5.2877,189.07,189.02,5.289]
[1738868793157,31.77122987,189.1,188.95,1.59]
[1738868793858,0.03657793,189.04,189.01,0.03431232]
[1738868795965,5.2865,189.12,189.01,0.03431232]
[1738868796266,5.2865,189.12,189.0,31.77122987]
[1738868796461,5.2865,189.12,189.01,1.5454]
[1738868796658,5.2865,189.12,189.02,2.4669]
[1738868797164,31.77122987,189.16,189.02,2.4669]
[1738868797362,0.03405208,189.09,189.05,0.03591405]
[1738868797666,5.18,189.17,189.03,31.77122987]
[1738868797863,0.03464521,189.09,189.05,0.03998868]
[1738868798161,31.77122987,189.13,189.02,2.4669]
[1738868798466,0.03589917,189.09,189.05,0.03701821]
[1738868798866,5.2886,189.04,188.99,5.2898]
[1738868799264,31.77122987,189.07,189.0,0.0347891]
[1738868799566,5.2891,189.02,188.98,5.2901]
[1738868799765,0.04000362,189.03,189.02,0.03366145]
[1738868800157,0.04000362,189.03,188.94,31.77122987]
[1738868800362,0.04000362,189.03,189.01,0.03942749]
[1738868800762,0.04000362,189.03,189.02,5.2891]
[1738868801369,31.77122987,189.13,189.04,5.2883]
[1738868801370,5.2872,189.09,189.04,5.2883]
[1738868801570,5.2872,189.09,189.0,0.03832179]
[1738868801873,5.2879,189.07,189.02,5.289]
[1738868802067,5.18,189.17,188.94,33.41682987]
[1738868802272,31.77122987,189.1,188.94,33.41682987]
[1738868802472,5.18,189.17,188.94,1.6456]
[1738868802473,5.2891,189.02,188.94,1.6456]
[1738868802672,31.80777263,189.07,189.04,0.03964009]
[1738868802972,5.2892,189.02,188.94,1.6456]
[1738868803173,31.80802031,189.07,189.04,0.03896133]
[1738868803470,5.2888,189.04,188.98,5.2901]
[1738868803672,0.03634252,189.07,189.04,0.03952808]
[1738868804068,31.77122987,189.1,188.94,33.41682987]
[1738868804266,0.03888142,189.07,189.04,0.03982207]
[1738868804466,0.03888142,189.07,188.99,5.2897]
[1738868804763,0.03888142,189.07,189.04,0.03394235]
[1738868805168,31.77122987,189.13,188.98,31.77122987]
[1738868805371,0.03905663,189.07,189.04,0.03663959]
[1738868807676,5.2882,189.05,189.04,0.03663959]
[1738868808074,6.61076543,189.05,189.04,0.03663959]
[1738868808274,1.32256543,189.05,188.94,1.6456]
[1738868808472,31.8102865,189.07,188.94,1.6456]
[1738868808673,31.77122987,189.01,188.86,21.55546982]
[1738868808875,31.77122987,189.01,188.86,27.27596982]
[1738868808876,5.16,189.0,188.86,27.27596982]
[1738868809074,1.3227914,188.99,188.91,5.2921]
[1738868809273,6.6129914,188.99,188.86,27.27596982]
[1738868809475,0.0347266,188.97,188.93,0.03716366]
[1738868810472,31.77122987,188.95,188.86,21.55546982]
[1738868810674,31.77122987,188.88,188.84,15.74349161]
[1738868810874,1.32279039,188.87,188.8,15.60336982]
[1738868811073,1.32279039,188.86,188.8,15.60336982]
[1738868811280,1.32279039,188.85,188.8,15.60336982]
[1738868811575,1.35832106,188.84,188.81,0.03722799]
[1738868811775,0.03469156,188.84,188.81,0.03722799]
[1738868812169,1.32364238,188.83,188.81,0.03722799]
[1738868812368,0.03469156,188.84,188.81,0.03722799]
[1738868812674,1.32366562,188.83,188.81,0.03722799]
[1738868812874,0.03469156,188.84,188.81,0.03722799]
[1738868813080,1.32367555,188.83,188.81,0.03722799]
[1738868813278,1.32367555,188.82,188.81,0.03722799]
[1738868814277,1.32381688,188.82,188.81,0.03722799]
[1738868814676,5.32889156,188.84,188.81,0.03722799]
[1738868814880,1.32378092,188.83,188.81,0.03722799]
[1738868815084,1.32378092,188.82,188.81,0.03722799]
[1738868815281,5.32889156,188.84,188.81,0.03722799]
[1738868815785,1.32376773,188.83,188.81,0.03722799]
[1738868816074,1.32376773,188.82,188.81,5.33212799]
[1738868816279,0.03469156,188.84,188.81,0.03722799]
[1738868817181,5.14,188.88,188.86,5.2933]
[1738868817377,5.2923,188.91,188.86,5.2933]
[1738868817583,5.08,188.96,188.79,31.77122987]
[1738868818375,0.04067222,188.89,188.86,0.03874298]
[1738868818577,0.04067222,188.89,188.88,5.293]
[1738868818774,5.2918,188.93,188.88,5.293]
[1738868819979,0.03993573,188.92,188.9,5.2924]
[1738868820283,7.13787112,188.96,188.85,31.77122987]
[1738868820773,7.13787112,188.96,188.83,1.6341]
[1738868821381,36.83122987,188.98,188.83,1.6341]
[1738868821382,0.03748569,188.91,188.88,0.03474556]
[1738868821581,5.292,188.92,188.88,0.03474556]
[1738868821782,0.04005344,188.91,188.88,0.03474556]
[1738868822176,5.2925,188.9,188.88,0.03474556]
[1738868822873,0.04005344,188.91,188.88,0.03474556]
[1738868823083,5.2927,188.89,188.88,0.03474556]
[1738868824083,5.2927,188.89,188.78,2.4953]
[1738868824084,31.77122987,188.89,188.78,2.4953]
[1738868824286,31.77122987,188.86,188.78,2.4953]
[1738868824489,31.77122987,188.86,188.77,1.6497]
[1738868824785,31.77122987,188.86,188.74,1.5367]
[1738868824981,31.77122987,188.86,188.8,5.295]
[1738868825189,0.03573974,188.82,188.78,0.03721858]
[1738868825587,31.77122987,188.91,188.84,5.294]
[1738868825787,5.2929,188.89,188.78,0.03721858]
[1738868826081,5.02,188.93,188.76,31.77122987]
[1738868826289,31.77122987,188.91,188.76,31.77122987]
[1738868826490,31.77122987,188.91,188.74,1.5367]
[1738868826686,0.03698083,188.85,188.82,0.03587328]
[1738868827087,5.2944,188.83,188.82,0.03587328]
[1738868828091,31.8082107,188.85,188.74,1.5367]
[1738868828292,1.32397956,188.84,188.76,5.2963]
[1738868828492,1.32397956,188.83,188.76,5.2963]
[1738868828686,1.32397956,188.82,188.74,1.5367]
[1738868828892,1.32397956,188.81,188.76,5.2963]
[1738868829093,0.03633676,188.8,188.76,0.0361864]
[1738868829392,0.03633676,188.8,188.77,5.2958]
[1738868829994,0.03633676,188.8,188.76,5.3324864]
[1738868830195,0.03633676,188.8,188.76,0.0361864]
[1738868831389,0.03633676,188.8,188.79,5.2955]
[1738868832799,0.03633676,188.8,188.76,0.0361864]
[1738868833197,0.03633676,188.8,188.77,5.2959]
[1738868833399,0.03633676,188.8,188.76,0.0361864]
[1738868833798,31.77122987,188.91,188.76,0.0361864]
[1738868833996,1.32371778,188.9,188.74,1.5367]
[1738868834200,31.77122987,188.91,188.79,5.2953]
[1738868834201,1.32371778,188.89,188.79,5.2953]
[1738868834396,1.32371778,188.88,188.76,31.77122987]
[1738868834595,1.32371778,188.87,188.76,31.77122987]
[1738868834795,31.77122987,188.91,188.85,5.2936]
[1738868834994,1.32348591,188.9,188.8,0.03946071]
[1738868835194,1.32348591,188.89,188.8,1.6145]
[1738868835392,1.32348591,188.89,188.87,5.2931]
[1738868835598,1.32348591,188.89,188.83,0.03678971]
[1738868836200,0.03831436,188.9,188.83,0.03678971]
[1738868836603,1.32330571,188.89,188.84,5.2939]
[1738868836803,1.32330571,188.89,188.83,0.03678971]
[1738868837204,1.32330571,188.88,188.83,5.33118971]
[1738868837403,1.32330571,188.87,188.83,5.33118971]
[1738868837704,0.03831436,188.9,188.85,5.2937]
[1738868837905,1.32346802,188.89,188.83,0.03678971]
[1738868838105,0.03831436,188.9,188.83,0.03678971]
[1738868838305,1.32337526,188.89,188.83,0.03678971]
[1738868838606,1.32337526,188.88,188.83,0.03678971]
[1738868838810,5.33071436,188.9,188.83,0.03678971]
[1738868839109,1.32337685,188.89,188.83,0.03678971]
[1738868839407,1.32337685,188.88,188.83,0.03678971]
[1738868839611,0.03831436,188.9,188.83,0.03678971]
[1738868839805,4.9,188.96,188.84,31.77122987]
[1738868840002,1.32319583,188.95,188.9,5.2922]
[1738868840307,5.2918,188.93,188.81,34.34902987]
[1738868840506,1.32319583,188.92,188.81,34.34902987]
[1738868840704,6.61559583,188.91,188.81,2.5778]
[1738868840898,1.32319583,188.9,188.81,2.5778]
[1738868841099,0.03532206,188.88,188.85,5.2936]
[1738868841302,1.32319583,188.87,188.81,2.5778]
[1738868841507,1.32319583,188.86,188.85,0.03581091]
[1738868842807,1.32319583,188.86,188.85,5.32951091]
[1738868843605,0.03851949,188.88,188.87,5.2933]
[1738868843901,1.36190448,188.88,188.85,0.03581091]
[1738868844106,1.32338499,188.87,188.85,0.03581091]
[1738868844306,1.32338499,188.86,188.85,0.03581091]
[1738868844502,6.61688499,188.86,188.85,0.03581091]
[1738868844706,6.18338499,188.86,188.74,2.5497]
[1738868845007,1.32391188,188.85,188.74,2.5497]
[1738868845210,1.32391188,188.84,188.74,2.5497]
[1738868845505,1.32391188,188.83,188.74,2.5497]
[1738868845702,1.32391188,188.82,188.74,2.5497]
[1738868845901,4.86,188.86,188.74,2.5497]
[1738868845902,0.03544068,188.8,188.79,5.2954]
[1738868846103,1.32391188,188.8,188.79,5.2954]
[1738868846305,0.0379666,188.81,188.77,0.03868472]
[1738868846506,0.0379666,188.81,188.8,5.2952]
[1738868846706,4.86,188.86,188.77,0.03868472]
[1738868846904,4.86,188.86,188.83,5.2943]
[1738868847406,4.86,188.86,188.76,19.61850487]
[1738868847611,5.2939,188.85,188.81,5.2947]
[1738868847806,0.03904262,188.83,188.81,5.2947]
[1738868848008,5.33344262,188.83,188.79,0.0337652]
[1738868848213,5.33344262,188.83,188.79,5.3292652]
[1738868848506,0.03904262,188.83,188.79,0.0337652]
[1738868848712,0.03904262,188.83,188.82,5.2947]
[1738868849209,0.03904262,188.83,188.8,5.2952]
[1738868849411,0.03904262,188.83,188.79,0.0337652]
[1738868850011,5.2949,188.82,188.79,0.0337652]
[1738868850614,5.295,188.81,188.79,0.0337652]
[1738868851118,5.2947,188.82,188.79,0.0337652]
[1738868852011,0.03904262,188.83,188.79,0.0337652]
[1738868852217,5.2952,188.8,188.79,0.0337652]
[1738868853614,4.8,188.82,188.79,0.0337652]
[1738868854623,0.03904262,188.83,188.79,0.0337652]
[1738868854820,0.03904262,188.83,188.8,5.2951]
[1738868855720,0.03904262,188.83,188.79,5.3291652]
[1738868857121,0.03904262,188.83,188.8,5.2952]
[1738868857517,0.03904262,188.83,188.79,0.0337652]
[1738868858323,1.32370284,188.82,188.8,5.2952]
[1738868858625,1.32369629,188.81,188.79,0.0337652]
[1738868858820,1.32369629,188.8,188.79,0.0337652]
[1738868859021,0.03904262,188.83,188.82,5.2947]
[1738868859422,19.61850487,188.91,188.79,0.0337652]
[1738868859724,4.74,188.92,188.76,19.61850487]
[1738868860024,4.74,188.93,188.76,19.61850487]
[1738868860615,0.03642672,188.86,188.85,5.2938]
[1738868860827,4.74,188.93,188.85,5.2938]
[1738868861019,0.03685098,188.87,188.85,5.2938]
[1738868861219,4.74,188.93,188.85,5.2938]
[1738868861421,0.03931131,188.88,188.85,5.2938]
[1738868862222,0.03931131,188.88,188.84,0.03827577]
[1738868862826,0.03931131,188.88,188.86,5.2933]
[1738868863122,0.03931131,188.88,188.84,0.03827577]
[1738868863427,0.03931131,188.88,188.84,5.33217577]
[1738868863618,0.03931131,188.88,188.84,0.03827577]
[1738868864019,0.03931131,188.88,188.85,5.2936]
[1738868865227,0.03931131,188.88,188.86,5.2935]
[1738868865426,0.03931131,188.88,188.84,0.03827577]
[1738868865821,0.03931131,188.88,188.85,5.2936]
[1738868866218,0.03931131,188.88,188.84,0.03827577]
[1738868866629,0.03931131,188.88,188.87,5.2933]
[1738868866829,4.68,188.98,188.85,1.5724]
[1738868867023,4.68,188.98,188.9,5.2924]
[1738868867329,4.68,188.98,188.85,1.5724]
[1738868867830,114.63935812,188.97,188.85,1.5724]
[1738868868128,0.0391999,188.93,188.89,0.03387616]
[1738868868530,5.2927,188.9,188.89,0.03387616]
[1738868870925,6.61629982,188.9,188.89,0.03387616]
[1738868872631,1.32359982,188.9,188.89,0.03387616]
[1738868873333,6.61599982,188.9,188.89,0.03387616]
[1738868874222,5.2924,188.9,188.89,0.03387616]
[1738868874427,6.61600178,188.9,188.89,0.03387616]
[1738868875133,1.32352894,188.9,188.89,0.03387616]
[1738868875532,0.0391999,188.93,188.89,0.03387616]
[1738868875733,1.32339678,188.92,188.89,0.03387616]
[1738868876129,0.0391999,188.93,188.92,5.2919]
[1738868876534,102.15872437,188.97,188.9,4.2602]
[1738868876931,102.15872437,188.97,188.91,19.61850487]
[1738868877134,102.15872437,188.97,188.92,5.2918]
[1738868877432,102.15872437,188.97,188.9,4.2602]
[1738868877630,0.03430736,188.96,188.91,5.2921]
[1738868877832,0.03430736,188.96,188.89,0.03387616]
[1738868878735,0.03430736,188.96,188.91,5.2919]
[1738868878935,0.03430736,188.96,188.89,0.03387616]